[Event "Titled Tuesday Blitz February 14 Early 2023"]
[White "Yeritsyan, Hayk"]
[Black "rikchessmx"]
[WhiteFideId "13307320"]
[WhiteElo "2241"]
[BlackElo "2312"]
[Result "1-0"]
[Round "05"]
[TimeControl "180+2"]
[Date "2023.02.15"]
[WhiteClock "0:01:31"]
[BlackClock "0:01:19"]

1. c4 {[%clk 0:03:00]}  e5 {[%clk 0:02:58]} 2. Nc3 {[%clk 0:02:58]}  Nf6 {[%clk 0:02:58]} 3. b3 {[%clk 0:02:58]}  Bc5 {[%clk 0:02:55]} 4. Bb2 {[%clk 0:02:57]}  d6 {[%clk 0:02:55]} 5. e3 {[%clk 0:02:56]}  a6 {[%clk 0:02:54]} 6. Nge2 {[%clk 0:02:56]}  O-O {[%clk 0:02:52]} 7. g3 {[%clk 0:02:56]}  Bg4 {[%clk 0:02:51]} 8. Bg2 {[%clk 0:02:56]}  Nc6 {[%clk 0:02:51]} 9. h3 {[%clk 0:02:56]}  Bh5 {[%clk 0:02:50]} 10. O-O {[%clk 0:02:56]}  Rb8 {[%clk 0:02:48]} 11. Qe1 {[%clk 0:02:55]}  Nb4 {[%clk 0:02:47]} 12. d4 {[%clk 0:02:34]}  exd4 {[%clk 0:02:40]} 13. exd4 {[%clk 0:02:35]}  Ba7 {[%clk 0:02:40]} 14. Qd2 {[%clk 0:02:28]}  Bg6 {[%clk 0:02:28]} 15. Nf4 {[%clk 0:02:26]}  Bf5 {[%clk 0:02:20]} 16. g4 {[%clk 0:02:20]}  Bd7 {[%clk 0:02:10]} 17. a3 {[%clk 0:02:11]}  Nc6 {[%clk 0:02:09]} 18. Ncd5 {[%clk 0:02:11]}  Re8 {[%clk 0:02:04]} 19. Rae1 {[%clk 0:02:09]}  b5 {[%clk 0:01:58]} 20. Rxe8+ {[%clk 0:02:05]}  Bxe8 {[%clk 0:01:58]} 21. cxb5 {[%clk 0:01:57]}  Rxb5 {[%clk 0:01:54]} 22. b4 {[%clk 0:01:53]}  a5 {[%clk 0:01:47]} 23. Re1 {[%clk 0:01:49]}  axb4 {[%clk 0:01:44]} 24. Nxf6+ {[%clk 0:01:48]}  gxf6 {[%clk 0:01:43]} 25. a4 {[%clk 0:01:45]}  Rb8 {[%clk 0:01:36]} 26. Nh5 {[%clk 0:01:41]}  Bd7 {[%clk 0:01:24]} 27. Qh6 {[%clk 0:01:34]}  Qf8 {[%clk 0:01:19]} 28. Nxf6+ {[%clk 0:01:31]} 1-0


[Site "https://www.chess.com"]

[Event "Titled Tuesday Blitz February 14 Early 2023"]
[White "Cepo, Toni"]
[Black "Aarav Dengla"]
[WhiteFideId "4675916"]
[BlackFideId "45059756"]
[WhiteElo "2145"]
[BlackElo "2343"]
[Result "1-0"]
[Round "05"]
[TimeControl "180+2"]
[Date "2023.02.15"]
[WhiteClock "0:00:07"]
[BlackClock "0:00:01"]

1. e4 {[%clk 0:03:00]}  c5 {[%clk 0:02:55]} 2. Nf3 {[%clk 0:02:58]}  d6 {[%clk 0:02:53]} 3. d4 {[%clk 0:02:56]}  cxd4 {[%clk 0:02:53]} 4. Nxd4 {[%clk 0:02:55]}  Nf6 {[%clk 0:02:52]} 5. Nc3 {[%clk 0:02:53]}  a6 {[%clk 0:02:51]} 6. h3 {[%clk 0:02:48]}  e5 {[%clk 0:02:50]} 7. Nb3 {[%clk 0:02:45]}  Be7 {[%clk 0:02:50]} 8. g4 {[%clk 0:02:43]}  h6 {[%clk 0:02:50]} 9. Be3 {[%clk 0:02:37]}  Qc7 {[%clk 0:02:29]} 10. Qd2 {[%clk 0:02:33]}  b5 {[%clk 0:02:23]} 11. a4 {[%clk 0:02:29]}  b4 {[%clk 0:02:21]} 12. Nd5 {[%clk 0:02:25]}  Nxd5 {[%clk 0:02:20]} 13. exd5 {[%clk 0:02:26]}  O-O {[%clk 0:02:09]} 14. Bg2 {[%clk 0:02:19]}  f5 {[%clk 0:02:09]} 15. gxf5 {[%clk 0:02:10]}  Bxf5 {[%clk 0:02:10]} 16. Rc1 {[%clk 0:02:09]}  a5 {[%clk 0:02:05]} 17. O-O {[%clk 0:01:55]}  Nd7 {[%clk 0:02:02]} 18. c3 {[%clk 0:01:54]}  Qc4 {[%clk 0:01:52]} 19. Qd1 {[%clk 0:01:41]}  bxc3 {[%clk 0:01:45]} 20. Nd2 {[%clk 0:01:32]}  Qa2 {[%clk 0:01:08]} 21. bxc3 {[%clk 0:01:30]}  Rac8 {[%clk 0:00:48]} 22. Qb3 {[%clk 0:01:26]}  Qxb3 {[%clk 0:00:40]} 23. Nxb3 {[%clk 0:01:26]}  Rc4 {[%clk 0:00:40]} 24. Nxa5 {[%clk 0:01:24]}  Rxa4 {[%clk 0:00:39]} 25. Nc6 {[%clk 0:01:24]}  Bf6 {[%clk 0:00:36]} 26. Ra1 {[%clk 0:01:10]}  Rc4 {[%clk 0:00:33]} 27. Rfc1 {[%clk 0:01:08]}  e4 {[%clk 0:00:25]} 28. Ra3 {[%clk 0:00:59]}  Rc8 {[%clk 0:00:21]} 29. Bf1 {[%clk 0:00:56]}  R4xc6 {[%clk 0:00:19]} 30. dxc6 {[%clk 0:00:56]}  Rxc6 {[%clk 0:00:20]} 31. Bb5 {[%clk 0:00:52]}  Rc7 {[%clk 0:00:19]} 32. c4 {[%clk 0:00:51]}  Ne5 {[%clk 0:00:18]} 33. c5 {[%clk 0:00:42]}  Nf3+ {[%clk 0:00:17]} 34. Kg2 {[%clk 0:00:42]}  Bb2 {[%clk 0:00:16]} 35. Ra8+ {[%clk 0:00:40]}  Kh7 {[%clk 0:00:15]} 36. Rb1 {[%clk 0:00:41]}  Be5 {[%clk 0:00:15]} 37. c6 {[%clk 0:00:41]}  Nh4+ {[%clk 0:00:15]} 38. Kh1 {[%clk 0:00:38]}  Bxh3 {[%clk 0:00:14]} 39. Ra7 {[%clk 0:00:37]}  Rc8 {[%clk 0:00:13]} 40. Rg1 {[%clk 0:00:33]}  Ng6 {[%clk 0:00:09]} 41. c7 {[%clk 0:00:31]}  d5 {[%clk 0:00:09]} 42. Bb6 {[%clk 0:00:29]}  Rf8 {[%clk 0:00:08]} 43. Ba6 {[%clk 0:00:27]}  e3 {[%clk 0:00:05]} 44. Bxe3 {[%clk 0:00:25]}  Bf5 {[%clk 0:00:05]} 45. c8=Q {[%clk 0:00:23]}  Bxc8 {[%clk 0:00:05]} 46. Bxc8 {[%clk 0:00:22]}  Rxc8 {[%clk 0:00:06]} 47. Ra6 {[%clk 0:00:20]}  Bf6 {[%clk 0:00:06]} 48. Rc1 {[%clk 0:00:19]}  Rd8 {[%clk 0:00:06]} 49. Rcc6 {[%clk 0:00:12]}  d4 {[%clk 0:00:05]} 50. Bd2 {[%clk 0:00:12]}  Ne5 {[%clk 0:00:05]} 51. Re6 {[%clk 0:00:12]}  Nc4 {[%clk 0:00:05]} 52. Ba5 {[%clk 0:00:08]}  d3 {[%clk 0:00:04]} 53. Bxd8 {[%clk 0:00:08]}  d2 {[%clk 0:00:01]} 54. Rad6 {[%clk 0:00:07]} 1-0


[Site "https://www.chess.com"]

[Event "Titled Tuesday Blitz February 14 Early 2023"]
[White "Georg, Heinz"]
[Black "Nguyen Hong Nhung"]
[WhiteFideId "4607295"]
[BlackFideId "12412201"]
[WhiteElo "2107"]
[BlackElo "2003"]
[Result "0-1"]
[Round "05"]
[TimeControl "180+2"]
[Date "2023.02.15"]
[WhiteClock "0:01:18"]
[BlackClock "0:00:40"]

1. e4 {[%clk 0:02:59]}  c5 {[%clk 0:02:59]} 2. Nf3 {[%clk 0:02:58]}  e6 {[%clk 0:02:59]} 3. b3 {[%clk 0:02:57]}  d6 {[%clk 0:02:58]} 4. Bb2 {[%clk 0:02:57]}  e5 {[%clk 0:02:58]} 5. c3 {[%clk 0:02:56]}  Nf6 {[%clk 0:02:56]} 6. Bd3 {[%clk 0:02:53]}  g6 {[%clk 0:02:53]} 7. Bc2 {[%clk 0:02:52]}  Bg7 {[%clk 0:02:53]} 8. d4 {[%clk 0:02:52]}  exd4 {[%clk 0:02:49]} 9. cxd4 {[%clk 0:02:52]}  O-O {[%clk 0:02:43]} 10. O-O {[%clk 0:02:50]}  Bg4 {[%clk 0:02:41]} 11. h3 {[%clk 0:02:50]}  Bxf3 {[%clk 0:02:41]} 12. Qxf3 {[%clk 0:02:50]}  Nfd7 {[%clk 0:02:35]} 13. Rd1 {[%clk 0:02:48]}  Nc6 {[%clk 0:02:35]} 14. e5 {[%clk 0:02:32]}  dxe5 {[%clk 0:02:32]} 15. d5 {[%clk 0:02:29]}  Nd4 {[%clk 0:02:31]} 16. Bxd4 {[%clk 0:02:29]}  cxd4 {[%clk 0:02:30]} 17. Bd3 {[%clk 0:02:11]}  a6 {[%clk 0:02:21]} 18. a4 {[%clk 0:02:07]}  Rc8 {[%clk 0:02:16]} 19. Nd2 {[%clk 0:02:06]}  Rc3 {[%clk 0:02:13]} 20. Ne4 {[%clk 0:02:01]}  Rxb3 {[%clk 0:02:06]} 21. Rab1 {[%clk 0:01:40]}  Rxb1 {[%clk 0:01:57]} 22. Bxb1 {[%clk 0:01:39]}  Nb6 {[%clk 0:01:52]} 23. Ba2 {[%clk 0:01:38]}  Nxa4 {[%clk 0:01:43]} 24. Qa3 {[%clk 0:01:36]}  b5 {[%clk 0:01:42]} 25. d6 {[%clk 0:01:33]}  Qa8 {[%clk 0:01:40]} 26. f3 {[%clk 0:01:32]}  Rd8 {[%clk 0:01:38]} 27. Rc1 {[%clk 0:01:30]}  Bf8 {[%clk 0:01:31]} 28. Rc7 {[%clk 0:01:29]}  Kh8 {[%clk 0:01:15]} 29. Rxf7 {[%clk 0:01:27]}  Nb6 {[%clk 0:01:02]} 30. Nf6 {[%clk 0:01:24]}  Bg7 {[%clk 0:01:02]} 31. Qc5 {[%clk 0:01:21]}  Bxf6 {[%clk 0:00:41]} 32. Rxf6 {[%clk 0:01:18]}  Nd7 {[%clk 0:00:40]} 0-1


[Site "https://www.chess.com"]

[Event "Titled Tuesday Blitz February 14 Early 2023"]
[White "Gharamian, Tigran"]
[Black "Mazurkiewicz, Michal"]
[WhiteFideId "13301527"]
[BlackFideId "1124943"]
[WhiteElo "2601"]
[BlackElo "2145"]
[Result "1-0"]
[Round "05"]
[TimeControl "180+2"]
[Date "2023.02.15"]
[WhiteClock "0:00:32"]
[BlackClock "0:00:08"]

1. d4 {[%clk 0:02:55]}  Nf6 {[%clk 0:02:59]} 2. c4 {[%clk 0:02:55]}  e5 {[%clk 0:02:59]} 3. dxe5 {[%clk 0:02:54]}  Ng4 {[%clk 0:02:59]} 4. Nf3 {[%clk 0:02:54]}  Bc5 {[%clk 0:02:59]} 5. e3 {[%clk 0:02:55]}  Nc6 {[%clk 0:02:59]} 6. Nc3 {[%clk 0:02:54]}  O-O {[%clk 0:02:59]} 7. Be2 {[%clk 0:02:54]}  Re8 {[%clk 0:02:58]} 8. O-O {[%clk 0:02:52]}  a5 {[%clk 0:02:58]} 9. Kh1 {[%clk 0:02:35]}  Ncxe5 {[%clk 0:02:55]} 10. Nxe5 {[%clk 0:02:35]}  Nxe5 {[%clk 0:02:56]} 11. f4 {[%clk 0:02:35]}  Nc6 {[%clk 0:02:49]} 12. Bd3 {[%clk 0:02:30]}  Bxe3 {[%clk 0:02:04]} 13. Bxe3 {[%clk 0:02:30]}  Rxe3 {[%clk 0:02:04]} 14. Nd5 {[%clk 0:02:30]}  Re6 {[%clk 0:01:55]} 15. f5 {[%clk 0:02:26]}  Rh6 {[%clk 0:01:55]} 16. f6 {[%clk 0:02:25]}  Nb4 {[%clk 0:01:50]} 17. Ne7+ {[%clk 0:01:44]}  Kh8 {[%clk 0:01:50]} 18. fxg7+ {[%clk 0:01:43]}  Kxg7 {[%clk 0:01:50]} 19. Nf5+ {[%clk 0:01:43]}  Kg6 {[%clk 0:01:48]} 20. Nxh6+ {[%clk 0:01:12]}  Kxh6 {[%clk 0:01:49]} 21. Rxf7 {[%clk 0:01:13]}  Nxd3 {[%clk 0:01:39]} 22. Qxd3 {[%clk 0:01:10]}  Qg8 {[%clk 0:01:33]} 23. Raf1 {[%clk 0:00:59]}  Ra6 {[%clk 0:01:08]} 24. Qe3+ {[%clk 0:00:53]}  Qg5 {[%clk 0:00:56]} 25. Rxh7+ {[%clk 0:00:43]}  Kg6 {[%clk 0:00:55]} 26. Qe4+ {[%clk 0:00:33]}  Qf5 {[%clk 0:00:08]} 27. Qxf5# {[%clk 0:00:32]} 1-0


[Site "https://www.chess.com"]

[Event "Titled Tuesday Blitz February 14 Early 2023"]
[White "Goncalves, Davi Sulzbacher"]
[Black "Cueto, Jonny"]
[WhiteFideId "2154510"]
[BlackFideId "3300145"]
[WhiteElo "2282"]
[BlackElo "2122"]
[Result "1-0"]
[Round "05"]
[TimeControl "180+2"]
[Date "2023.02.15"]
[WhiteClock "0:00:51"]
[BlackClock "0:00:02"]

1. d4 {[%clk 0:03:00]}  e6 {[%clk 0:02:58]} 2. Nf3 {[%clk 0:03:00]}  Nf6 {[%clk 0:02:57]} 3. Bg5 {[%clk 0:02:59]}  b6 {[%clk 0:02:55]} 4. Nbd2 {[%clk 0:02:58]}  Bb7 {[%clk 0:02:54]} 5. e4 {[%clk 0:02:58]}  h6 {[%clk 0:02:52]} 6. Bxf6 {[%clk 0:02:51]}  Qxf6 {[%clk 0:02:53]} 7. Bd3 {[%clk 0:02:51]}  d5 {[%clk 0:02:51]} 8. e5 {[%clk 0:02:51]}  Qd8 {[%clk 0:02:49]} 9. a4 {[%clk 0:02:50]}  a6 {[%clk 0:02:47]} 10. a5 {[%clk 0:02:47]}  b5 {[%clk 0:02:39]} 11. c3 {[%clk 0:02:46]}  Be7 {[%clk 0:02:38]} 12. b4 {[%clk 0:02:45]}  O-O {[%clk 0:02:35]} 13. O-O {[%clk 0:02:35]}  f6 {[%clk 0:02:32]} 14. Nh4 {[%clk 0:02:30]}  fxe5 {[%clk 0:02:30]} 15. Ng6 {[%clk 0:02:30]}  Rf6 {[%clk 0:01:54]} 16. Nxe5 {[%clk 0:02:20]}  Nd7 {[%clk 0:01:53]} 17. f4 {[%clk 0:02:18]}  Nxe5 {[%clk 0:01:51]} 18. fxe5 {[%clk 0:02:18]}  Rxf1+ {[%clk 0:01:51]} 19. Nxf1 {[%clk 0:02:01]}  Bg5 {[%clk 0:01:42]} 20. Bc2 {[%clk 0:01:52]}  Qf8 {[%clk 0:00:47]} 21. Qd3 {[%clk 0:01:50]}  Qf4 {[%clk 0:00:47]} 22. Qh7+ {[%clk 0:01:48]}  Kf7 {[%clk 0:00:46]} 23. Bg6+ {[%clk 0:01:46]}  Kf8 {[%clk 0:00:44]} 24. Qh8+ {[%clk 0:01:46]}  Ke7 {[%clk 0:00:44]} 25. Qxg7+ {[%clk 0:01:46]}  Kd8 {[%clk 0:00:44]} 26. g3 {[%clk 0:01:36]}  Qf3 {[%clk 0:00:21]} 27. Ra2 {[%clk 0:01:29]}  Qxc3 {[%clk 0:00:11]} 28. Rc2 {[%clk 0:00:54]}  Qxd4+ {[%clk 0:00:11]} 29. Kg2 {[%clk 0:00:54]}  Qe4+ {[%clk 0:00:12]} 30. Bxe4 {[%clk 0:00:54]}  c6 {[%clk 0:00:07]} 31. Rf2 {[%clk 0:00:51]}  Be7 {[%clk 0:00:04]} 32. Rf7 {[%clk 0:00:50]}  Bxb4 {[%clk 0:00:03]} 33. Qg8+ {[%clk 0:00:50]}  Bf8 {[%clk 0:00:02]} 34. Qxf8# {[%clk 0:00:51]} 1-0


[Site "https://www.chess.com"]

[Event "Titled Tuesday Blitz February 14 Early 2023"]
[White "Mendez Machado, Andre"]
[Black "Delorme, Axel"]
[WhiteFideId "6603793"]
[BlackFideId "632023"]
[WhiteElo "1974"]
[BlackElo "2483"]
[Result "1-0"]
[Round "05"]
[TimeControl "180+2"]
[Date "2023.02.15"]
[WhiteClock "0:00:17"]
[BlackClock "0:00:22"]

1. e4 {[%clk 0:02:57]}  c5 {[%clk 0:02:59]} 2. Nc3 {[%clk 0:02:55]}  a6 {[%clk 0:02:59]} 3. d4 {[%clk 0:02:55]}  cxd4 {[%clk 0:02:58]} 4. Qxd4 {[%clk 0:02:56]}  Nc6 {[%clk 0:02:58]} 5. Qe3 {[%clk 0:02:56]}  g6 {[%clk 0:02:55]} 6. Bd2 {[%clk 0:02:51]}  Bh6 {[%clk 0:02:41]} 7. Qe2 {[%clk 0:02:33]}  Bxd2+ {[%clk 0:02:41]} 8. Qxd2 {[%clk 0:02:33]}  Nf6 {[%clk 0:02:38]} 9. O-O-O {[%clk 0:02:31]}  d6 {[%clk 0:02:32]} 10. f4 {[%clk 0:02:28]}  Bg4 {[%clk 0:02:30]} 11. Be2 {[%clk 0:02:27]}  Bxe2 {[%clk 0:02:28]} 12. Ngxe2 {[%clk 0:02:27]}  Qa5 {[%clk 0:02:21]} 13. Kb1 {[%clk 0:02:20]}  b5 {[%clk 0:02:10]} 14. Nd5 {[%clk 0:02:02]}  Nxd5 {[%clk 0:01:57]} 15. exd5 {[%clk 0:01:49]}  Qxd2 {[%clk 0:01:54]} 16. Rxd2 {[%clk 0:01:48]}  Na7 {[%clk 0:01:41]} 17. Nd4 {[%clk 0:01:46]}  Kd7 {[%clk 0:01:38]} 18. Re1 {[%clk 0:01:44]}  Rhe8 {[%clk 0:01:36]} 19. Rde2 {[%clk 0:01:38]}  Rac8 {[%clk 0:01:28]} 20. Nb3 {[%clk 0:01:12]}  Rc4 {[%clk 0:01:25]} 21. g3 {[%clk 0:01:00]}  h5 {[%clk 0:01:20]} 22. c3 {[%clk 0:00:58]}  Nc8 {[%clk 0:01:12]} 23. Nd2 {[%clk 0:00:55]}  Rc5 {[%clk 0:01:07]} 24. Ne4 {[%clk 0:00:55]}  Rxd5 {[%clk 0:00:41]} 25. Nf6+ {[%clk 0:00:55]}  exf6 {[%clk 0:00:41]} 26. Rxe8 {[%clk 0:00:54]}  Rd2 {[%clk 0:00:40]} 27. Rf8 {[%clk 0:00:50]}  Nb6 {[%clk 0:00:30]} 28. Rxf7+ {[%clk 0:00:50]}  Kc6 {[%clk 0:00:31]} 29. Rxf6 {[%clk 0:00:49]}  Nc4 {[%clk 0:00:30]} 30. b3 {[%clk 0:00:32]}  Na3+ {[%clk 0:00:29]} 31. Kc1 {[%clk 0:00:27]}  Rxh2 {[%clk 0:00:26]} 32. Ree6 {[%clk 0:00:22]}  Rc2+ {[%clk 0:00:21]} 33. Kd1 {[%clk 0:00:22]}  Rxc3 {[%clk 0:00:20]} 34. Rxd6+ {[%clk 0:00:22]}  Kc7 {[%clk 0:00:20]} 35. Rxa6 {[%clk 0:00:20]}  b4 {[%clk 0:00:21]} 36. Rf7+ {[%clk 0:00:18]}  Kb8 {[%clk 0:00:21]} 37. Rxg6 {[%clk 0:00:17]}  Nb5 {[%clk 0:00:20]} 38. Rg8+ {[%clk 0:00:17]}  Rc8 {[%clk 0:00:19]} 39. Rxc8+ {[%clk 0:00:18]}  Kxc8 {[%clk 0:00:20]} 40. Rf5 {[%clk 0:00:18]}  Nc3+ {[%clk 0:00:21]} 41. Kc2 {[%clk 0:00:16]}  Nxa2 {[%clk 0:00:22]} 42. Rxh5 {[%clk 0:00:16]}  Nc3 {[%clk 0:00:23]} 43. Rc5+ {[%clk 0:00:16]}  Kd7 {[%clk 0:00:22]} 44. Rxc3 {[%clk 0:00:17]} 1-0


[Site "https://www.chess.com"]

[Event "Titled Tuesday Blitz February 14 Early 2023"]
[White "Mirzanurov, Bulat"]
[Black "Ardila, Oscar Humberto"]
[WhiteFideId "4184521"]
[BlackFideId "4404742"]
[WhiteElo "2232"]
[BlackElo "1982"]
[Result "1-0"]
[Round "05"]
[TimeControl "180+2"]
[Date "2023.02.15"]
[WhiteClock "0:00:06"]
[BlackClock "0:00:01"]

1. e4 {[%clk 0:03:00]}  e5 {[%clk 0:02:58]} 2. Nf3 {[%clk 0:02:59]}  Nf6 {[%clk 0:02:58]} 3. Nxe5 {[%clk 0:02:58]}  d6 {[%clk 0:02:58]} 4. Nf3 {[%clk 0:02:52]}  Nxe4 {[%clk 0:02:58]} 5. d4 {[%clk 0:02:52]}  Be7 {[%clk 0:02:57]} 6. Bd3 {[%clk 0:02:50]}  Nf6 {[%clk 0:02:57]} 7. O-O {[%clk 0:02:46]}  Bg4 {[%clk 0:02:56]} 8. h3 {[%clk 0:02:46]}  Bh5 {[%clk 0:02:56]} 9. c4 {[%clk 0:02:44]}  O-O {[%clk 0:02:55]} 10. Nc3 {[%clk 0:02:43]}  Nc6 {[%clk 0:02:55]} 11. Be3 {[%clk 0:02:43]}  Re8 {[%clk 0:02:54]} 12. b3 {[%clk 0:02:39]}  Qd7 {[%clk 0:02:49]} 13. Be2 {[%clk 0:02:35]}  Bf8 {[%clk 0:02:41]} 14. Ne1 {[%clk 0:02:20]}  Bxe2 {[%clk 0:02:33]} 15. Nxe2 {[%clk 0:02:21]}  Ne4 {[%clk 0:02:30]} 16. Nd3 {[%clk 0:02:11]}  g6 {[%clk 0:02:26]} 17. Rc1 {[%clk 0:02:03]}  Bg7 {[%clk 0:02:25]} 18. d5 {[%clk 0:01:59]}  Ne5 {[%clk 0:02:08]} 19. Nxe5 {[%clk 0:01:35]}  Bxe5 {[%clk 0:02:05]} 20. Bd4 {[%clk 0:01:33]}  Qf5 {[%clk 0:01:58]} 21. Bxe5 {[%clk 0:01:29]}  Rxe5 {[%clk 0:01:56]} 22. Nd4 {[%clk 0:01:11]}  Qf4 {[%clk 0:01:49]} 23. Nf3 {[%clk 0:01:08]}  Re7 {[%clk 0:01:45]} 24. Re1 {[%clk 0:01:07]}  Rae8 {[%clk 0:01:44]} 25. Qd4 {[%clk 0:00:49]}  b6 {[%clk 0:01:23]} 26. Re3 {[%clk 0:00:38]}  f5 {[%clk 0:01:00]} 27. Rce1 {[%clk 0:00:37]}  Qh6 {[%clk 0:00:51]} 28. Nd2 {[%clk 0:00:32]}  Qf4 {[%clk 0:00:32]} 29. Nxe4 {[%clk 0:00:31]}  fxe4 {[%clk 0:00:31]} 30. f3 {[%clk 0:00:23]}  Re5 {[%clk 0:00:25]} 31. Rxe4 {[%clk 0:00:22]}  Rxe4 {[%clk 0:00:25]} 32. Rxe4 {[%clk 0:00:21]}  Rxe4 {[%clk 0:00:25]} 33. Qxe4 {[%clk 0:00:21]}  Qc1+ {[%clk 0:00:25]} 34. Kh2 {[%clk 0:00:21]}  Qb2 {[%clk 0:00:20]} 35. Qe8+ {[%clk 0:00:20]}  Kg7 {[%clk 0:00:20]} 36. Qe7+ {[%clk 0:00:20]}  Kh6 {[%clk 0:00:20]} 37. f4 {[%clk 0:00:15]}  Qf2 {[%clk 0:00:16]} 38. Qf8+ {[%clk 0:00:14]}  Kh5 {[%clk 0:00:12]} 39. Qf7 {[%clk 0:00:14]}  Kh6 {[%clk 0:00:04]} 40. Qf8+ {[%clk 0:00:13]}  Kh5 {[%clk 0:00:04]} 41. a3 {[%clk 0:00:04]}  a5 {[%clk 0:00:04]} 42. Qf7 {[%clk 0:00:04]}  Kh6 {[%clk 0:00:04]} 43. a4 {[%clk 0:00:05]}  Qf1 {[%clk 0:00:01]} 44. Qf8+ {[%clk 0:00:04]}  Kh5 {[%clk 0:00:01]} 45. g4+ {[%clk 0:00:05]}  Kh4 {[%clk 0:00:01]} 46. Qh6# {[%clk 0:00:06]} 1-0


[Site "https://www.chess.com"]

[Event "Titled Tuesday Blitz February 14 Early 2023"]
[White "Korpics, Zsolt"]
[Black "Valle Maytin, Luis Enrique"]
[WhiteFideId "705241"]
[BlackFideId "3503666"]
[WhiteElo "2300"]
[BlackElo "2241"]
[Result "0-1"]
[Round "05"]
[TimeControl "180+2"]
[Date "2023.02.15"]
[WhiteClock "0:00:06"]
[BlackClock "0:00:15"]

1. e4 {[%clk 0:03:00]}  c6 {[%clk 0:02:59]} 2. Nf3 {[%clk 0:03:00]}  d5 {[%clk 0:03:00]} 3. Nc3 {[%clk 0:03:01]}  Bg4 {[%clk 0:02:59]} 4. h3 {[%clk 0:03:01]}  Bxf3 {[%clk 0:02:59]} 5. Qxf3 {[%clk 0:03:02]}  e6 {[%clk 0:02:59]} 6. d3 {[%clk 0:03:02]}  g6 {[%clk 0:02:58]} 7. Bd2 {[%clk 0:03:01]}  Bg7 {[%clk 0:02:59]} 8. g4 {[%clk 0:03:02]}  Ne7 {[%clk 0:02:59]} 9. Bg2 {[%clk 0:03:00]}  d4 {[%clk 0:02:56]} 10. Ne2 {[%clk 0:02:59]}  c5 {[%clk 0:02:56]} 11. Qg3 {[%clk 0:02:59]}  Nbc6 {[%clk 0:02:57]} 12. f4 {[%clk 0:02:58]}  f5 {[%clk 0:02:44]} 13. gxf5 {[%clk 0:02:55]}  exf5 {[%clk 0:02:45]} 14. e5 {[%clk 0:02:50]}  Qb6 {[%clk 0:02:26]} 15. b3 {[%clk 0:02:41]}  Nb4 {[%clk 0:02:17]} 16. Bxb4 {[%clk 0:02:31]}  Qxb4+ {[%clk 0:02:16]} 17. Kf2 {[%clk 0:02:31]}  O-O-O {[%clk 0:02:06]} 18. c3 {[%clk 0:02:22]}  dxc3 {[%clk 0:02:02]} 19. Rhc1 {[%clk 0:02:22]}  Rhg8 {[%clk 0:01:29]} 20. a3 {[%clk 0:02:08]}  Qb6 {[%clk 0:01:24]} 21. Rxc3 {[%clk 0:02:04]}  g5 {[%clk 0:01:22]} 22. d4 {[%clk 0:01:15]}  Kb8 {[%clk 0:01:04]} 23. dxc5 {[%clk 0:01:13]}  Qc7 {[%clk 0:00:57]} 24. Rc4 {[%clk 0:00:44]}  gxf4 {[%clk 0:00:56]} 25. Qf3 {[%clk 0:00:43]}  Nc6 {[%clk 0:00:44]} 26. Rb4 {[%clk 0:00:13]}  Nxb4 {[%clk 0:00:20]} 27. axb4 {[%clk 0:00:14]}  Bxe5 {[%clk 0:00:20]} 28. Ra2 {[%clk 0:00:14]}  Bd4+ {[%clk 0:00:17]} 29. Kf1 {[%clk 0:00:11]}  Be3 {[%clk 0:00:16]} 30. Rc2 {[%clk 0:00:06]}  Rd1# {[%clk 0:00:15]} 0-1


[Site "https://www.chess.com"]

[Event "Titled Tuesday Blitz February 14 Early 2023"]
[White "Meera, Sai"]
[Black "Mesa Cruz, Juan Carlos"]
[WhiteFideId "5004357"]
[BlackFideId "6423400"]
[WhiteElo "2064"]
[BlackElo "2122"]
[Result "1-0"]
[Round "05"]
[TimeControl "180+2"]
[Date "2023.02.15"]
[WhiteClock "0:00:03"]
[BlackClock "0:00:01"]

1. e4 {[%clk 0:02:56]}  c5 {[%clk 0:02:58]} 2. Nf3 {[%clk 0:02:55]}  d6 {[%clk 0:02:57]} 3. d4 {[%clk 0:02:55]}  cxd4 {[%clk 0:02:57]} 4. Nxd4 {[%clk 0:02:55]}  Nf6 {[%clk 0:02:57]} 5. Nc3 {[%clk 0:02:56]}  a6 {[%clk 0:02:56]} 6. a3 {[%clk 0:02:56]}  e5 {[%clk 0:02:55]} 7. Nf5 {[%clk 0:02:56]}  g6 {[%clk 0:02:44]} 8. Ne3 {[%clk 0:02:53]}  Be6 {[%clk 0:02:44]} 9. Ned5 {[%clk 0:02:46]}  Nbd7 {[%clk 0:02:42]} 10. Bg5 {[%clk 0:02:46]}  h6 {[%clk 0:02:41]} 11. Bxf6 {[%clk 0:02:44]}  Nxf6 {[%clk 0:02:40]} 12. Nxf6+ {[%clk 0:02:43]}  Qxf6 {[%clk 0:02:40]} 13. Nd5 {[%clk 0:02:43]}  Qd8 {[%clk 0:02:38]} 14. Bc4 {[%clk 0:02:38]}  Rc8 {[%clk 0:02:36]} 15. Bb3 {[%clk 0:02:38]}  Bg7 {[%clk 0:02:32]} 16. O-O {[%clk 0:02:28]}  O-O {[%clk 0:02:31]} 17. Qd3 {[%clk 0:02:15]}  Kh7 {[%clk 0:02:24]} 18. Rad1 {[%clk 0:02:15]}  f5 {[%clk 0:02:24]} 19. f3 {[%clk 0:02:12]}  h5 {[%clk 0:02:16]} 20. Ne3 {[%clk 0:02:11]}  Bxb3 {[%clk 0:02:10]} 21. Qxb3 {[%clk 0:02:11]}  Rc6 {[%clk 0:02:07]} 22. exf5 {[%clk 0:02:09]}  gxf5 {[%clk 0:02:03]} 23. Qd3 {[%clk 0:02:04]}  Qg5 {[%clk 0:01:58]} 24. Kh1 {[%clk 0:02:00]}  h4 {[%clk 0:01:51]} 25. f4 {[%clk 0:01:56]}  exf4 {[%clk 0:01:36]} 26. Nd5 {[%clk 0:01:56]}  Rg8 {[%clk 0:01:16]} 27. Nxf4 {[%clk 0:01:41]}  Be5 {[%clk 0:01:12]} 28. Qd2 {[%clk 0:00:35]}  Bxf4 {[%clk 0:01:10]} 29. Rxf4 {[%clk 0:00:35]}  Rxc2 {[%clk 0:01:05]} 30. Rxh4+ {[%clk 0:00:33]}  Qxh4 {[%clk 0:01:00]} 31. Qxc2 {[%clk 0:00:33]}  Qg4 {[%clk 0:00:42]} 32. Rxd6 {[%clk 0:00:25]}  Re8 {[%clk 0:00:13]} 33. Rd7+ {[%clk 0:00:18]}  Kh6 {[%clk 0:00:08]} 34. Qc1+ {[%clk 0:00:16]}  Kg6 {[%clk 0:00:05]} 35. Rd6+ {[%clk 0:00:15]}  Kf7 {[%clk 0:00:03]} 36. h3 {[%clk 0:00:12]}  Qe4 {[%clk 0:00:02]} 37. Qc7+ {[%clk 0:00:04]}  Re7 {[%clk 0:00:01]} 38. Rd7 {[%clk 0:00:04]}  Qe1+ {[%clk 0:00:01]} 39. Kh2 {[%clk 0:00:05]}  f4 {[%clk 0:00:01]} 40. Qc4+ {[%clk 0:00:04]}  Ke8 {[%clk 0:00:01]} 41. Qc8+ {[%clk 0:00:03]}  Kf7 {[%clk 0:00:01]} 42. Rxe7+ {[%clk 0:00:03]} 1-0


[Site "https://www.chess.com"]